Cogmind - Beta 15 @@@ ROGUE MODE // 2025.05.08 @ 21:14:24 Player: Skysub Result: Destroyed self with Grenade Launcher Performance ------------- Evolutions (0) 0 Regions Visited (2) 400 Robots Destroyed (28) 140 Value Destroyed (695) 695 Prototype IDs (0) 0 Alien Tech Used (0) 0 Bonus (0) 0 TOTAL SCORE: 1235 Bonus ------- None Cogmind --------- Core Integrity 0/250 Matter 165/300 Energy 99/250 System Corruption 0% Temperature Cool (0) Movement Rolling (105) Ox1 Location -10/Subcaves Parts ------- > --- POWER (1) -------- Ion Engine > --- PROPULSION (2) --- Wheel Compact Wheel > --- UTILITY (2) ------ Large Storage Unit Structural Scanner > --- WEAPON (2) ------- Assault Rifle Grenade Launcher > --- INVENTORY (15) --- Light Treads Light Treads High-capacity Battery (250) Sensor Array Signal Interpreter Terrain Scanner Terrain Scan Processor Power Shielding Subdweller Laser Light Assault Rifle Light Assault Rifle Mining Laser Peak State ------------ > --- POWER ------------ Ion Engine > --- PROPULSION ------- Wheel Wheel > --- UTILITY ---------- Large Storage Unit Improved Terrain Scanner > --- WEAPON ----------- Small Laser Light Assault Rifle > --- INVENTORY -------- Light Ion Engine Light Treads Light Treads Heat Sink Terrain Scan Processor Power Shielding Grenade Launcher Grenade Launcher Mining Laser [Rating: 10] Favorites ----------- Power Light Ion Engine Engine Light Ion Engine Propulsion Wheel Wheel Wheel Utility Large Storage Unit Device Structural Scanner Storage Large Storage Unit Weapon Light Assault Rifle Energy Gun Small Laser Ballistic Gun Light Assault Rifle Launcher Grenade Launcher Special Weapon Mining Laser Build | -11 -10 -10 ------- Run | Yrd Mat Sub Slots Evolved . | . . . Power . | . . . Propulsion . | . . . Utility . | . . . Weapon . | . . . Parts Attached 19 | 7 8 4 Power 3 | 1 1 1 Engine 3 | 1 1 1 Core . | . . . Reactor . | . . . Propulsion 5 | 2 2 1 Treads . | . . . Leg . | . . . Wheel 5 | 2 2 1 Hover . | . . . Flight . | . . . Utility 4 | 2 2 . Device 2 | 1 1 . Storage 2 | 1 1 . Processor . | . . . Hackware . | . . . Protection . | . . . Artifact . | . . . Weapon 7 | 2 3 2 Energy Gun 1 | 1 . . Energy Cannon . | . . . Ballistic Gun 3 | 1 2 . Ballistic Cannon . | . . . Launcher 2 | . . 2 Special Weapon 1 | . 1 . Impact Weapon . | . . . Slashing Weapon . | . . . Piercing Weapon . | . . . Special Melee Weapon . | . . . Unidentified Prototypes . | . . . Parts Lost 7 | . 4 3 Power 2 | . 1 1 Propulsion 3 | . 2 1 Utility 1 | . 1 . Weapon 1 | . . 1 Highest Loss Streak 3 | . 2 3 To Critical Strikes 1 | . . 1 Average Backups 12 | 1 11 14 Power . | . 1 . Propulsion 2 | 1 2 2 Utility 4 | . 4 6 Weapon 4 | . 3 4 Tool/Special . | . . . Unused Backups 12 | . 2 10 Power 1 | . 1 . Propulsion 2 | . . 2 Utility 7 | . 1 6 Weapon 2 | . . 2 Tool/Special . | . . . Average Slot Usage (%) 94 | . 93 98 Engine 13 | . 13 13 Wheel 25 | . 25 27 Device 11 | . 10 14 Storage 14 | . 14 14 Energy Gun 3 | . 5 . Ballistic Gun 17 | . 19 14 Launcher 3 | . . 10 Special Weapon 3 | . 3 3 Peak Build Rating 10 | 9 10 8 Average Rating 7 | 5 8 7 On Entrance 5 | . 9 8 Naked Turns . | . . . Heaviest Build 31 | 13 28 31 Greatest Support 26 | 20 20 26 Greatest Overweight (x) 2 | . 2 1 Average Overweight (x) 1 | . 1 1 Largest Inventory Capacity 15 | 8 15 15 Average Capacity 14 | 7 14 15 Most Carried 15 | 3 15 15 Average Carried 12 | 2 11 14 Final Capacity 15 | 8 15 15 Final Carried 15 | 3 15 12 Class Distribution -------------------- 52% | Mutant 47% | Scavenger-Mutant Dominant Class ---------------- Mutant | -10/Materials Scavenger-Mutant | -10/Subcaves Resources | -11 -10 -10 ----------- Run | Yrd Mat Sub Matter Collected 528 | 204 234 90 Remotely . | . . . Salvage Created 750 | 12 601 137 Parts 51 | 2 39 10 Haulers Intercepted 1 | . 1 . Recyclers Shooed 1 | . 1 . Parts Field Recycled . | . . . Retrieved Matter . | . . . Parts Self-Destructed 6 | . . 6 Prevented . | . . . Kills | -11 -10 -10 ------- Run | Yrd Mat Sub Combat Hostiles Destroyed 22 | . 15 7 Guns 15 | . 15 . AOE 7 | . . 7 Classes Destroyed 7 | 1 5 1 Worker 1 | . 1 . Builder 3 | . 3 . Tunneler 1 | 1 . . Hauler 1 | . 1 . Swarmer 6 | . 6 . Grunt 11 | . 9 2 Subdweller 5 | . . 5 Best Kill Streak 7 | 1 7 2 Combat Bots Only 5 | . 5 2 Max Kills in Single Turn 2 | 1 2 1 Gunslinging 1 | . 1 . Exploded 1 | . . 1 Melee . | . . . Uniques/NPCs Destroyed . | . . . Combat | -11 -10 -10 -------- Run | Yrd Mat Sub Hostile Shots Fired 79 | . 56 23 Missed 13 | . 8 5 Hits 66 | . 48 18 Projectile 66 | . 48 18 Critical Strikes 1 | . . 1 Damage Taken 941 | . 531 410 Core 254 | . 142 112 Absorbed by Shields . | . . . Core Remaining (%) 100 | 100 . . Volleys Fired 91 | 2 70 19 Largest 2 | 2 2 1 Hottest 120 | 60 120 100 Shots Fired 160 | 4 137 19 Gun 132 | 4 128 . Cannon . | . . . Launcher 18 | . . 18 Special 10 | . 9 1 Kinetic 92 | 2 90 . Thermal 50 | 2 47 1 Explosive 18 | . . 18 Electromagnetic . | . . . Robot Hit Streak 9 | 1 9 9 Robot Miss Streak 3 | 1 3 2 Penetration Max . | . . . Secondary Targets 2 | . 2 . Max Gunslinging Chain 1 | . 1 . Shots Hit Robots 102 | 2 86 14 Core Hits 50 | 1 37 12 Critical Kills 1 | . 1 . Critical Parts Destroyed . | . . . Critical Strikes 1 | . 1 . Destroy 1 | . 1 . Melee Attacks . | . . . Impact . | . . . Slashing . | . . . Piercing . | . . . Sneak Attacks . | . . . Combat Hostiles . | . . . Follow-up Attacks . | . . . Damage Inflicted 1601 | 21 782 798 Guns 755 | 21 734 . Cannons . | . . . Explosions 798 | . . 798 Melee . | . . . Ramming . | . . . Kinetic 474 | . 474 . Thermal 329 | 21 308 . Explosive 798 | . . 798 Electromagnetic . | . . . Impact . | . . . Slashing . | . . . Piercing . | . . . Highest Corruption . | . . . Average Corruption . | . . . Corruption Purged . | . . . Corruption Blocked . | . . . Overload Shots . | . . . Overflow Damage . | . . . Projectiles . | . . . Explosions . | . . . Melee . | . . . Knockbacks . | . . . Impact . | . . . Kinetic . | . . . Secondary . | . . . Self-Inflicted Damage 42 | . . 42 Shots 2 | . . 2 Rammed . | . . . Targets Rammed . | . . . Kicked . | . . . Crushed . | . . . Highest Temperature 221 | 20 221 . Average Temperature 46 | 15 46 . Received Heat Transfer 300 | . 261 39 Siege Activations . | . . . Martial Activations . | . . . Shielding Activations . | . . . Robots Disrupted . | . . . Combat Hostiles . | . . . Robots Corrupted . | . . . Combat Hostiles . | . . . Parts Fried . | . . . Impact Corruptions . | . . . Robots Melted . | . . . Combat Hostiles . | . . . Parts Melted . | . . . Heat Transferred 750 | 50 700 . Parts Sabotaged . | . . . Parts Stolen . | . . . Parts Stripped . | . . . Power Chain Reactions . | . . . Alert | -11 -10 -10 ------- Run | Yrd Mat Sub Maximum Alert Level . | . . . Low Security (%) 100 | 100 100 . Level 1 . | . . . Level 2 . | . . . Level 3 . | . . . Level 4 . | . . . Level 5 . | . . . High Security . | . . . Max Security . | . . . Peak Influence 142 | 5 142 . Initial . | . . . Average 77 | . 82 . Influence Increases 485 | 5 430 50 Destroy 0b10 Robot/C 340 | . 300 40 Destroy 0b10 Robot/NC 30 | 5 25 . Destroy Leader 72 | . 62 10 Successful Hack 10 | . 10 . Disable Machine 15 | . 15 . Destroy Structure 3 | . 3 . Lose Combat Pursuer 15 | . 15 . Influence Decreases 485 | 5 388 92 Entered New Map 21 | . . 21 Time Decay 414 | 5 348 61 Lost Part 50 | . 40 10 Squads Dispatched 3 | . 3 . Investigation 1 | . 1 . Extermination . | . . . Reinforcement 2 | . 2 . Assault . | . . . Garrison . | . . . Intercept . | . . . Searches Triggered . | . . . Construction Impeded . | . . . Haulers Reinforced . | . . . Active Scanning Responses . | . . . Cargo Convoy Interrupts . | . . . Stealth | -11 -10 -10 --------- Run | Yrd Mat Sub Distress Signals . | . . . Communications Jammed . | . . . Distress Signals . | . . . Times Spotted 28 | . 21 7 Peak Tracking Total 4 | . 4 2 Tactical Retreats 2 | . 1 1 Traps | -11 -10 -10 ------- Run | Yrd Mat Sub Traps Triggered 1 | . 1 . Indirectly . | . . . Trap Hack Attempts . | . . . Triggered . | . . . Disarmed . | . . . Reprogrammed . | . . . Reused . | . . . Traps Extracted . | . . . Installed . | . . . Triggered . | . . . Machines | -11 -10 -10 ---------- Run | Yrd Mat Sub Machines Disabled 1 | . 1 . Max in Single Turn 1 | . 1 . Machines Repaired . | . . . Machines Dismantled . | . . . Machines Sabotaged . | . . . Overloaded Fab Kills . | . . . Hacking | -11 -10 -10 --------- Run | Yrd Mat Sub Machines Accessed 6 | . 6 . Terminals 4 | . 4 . Fabricators . | . . . Repair Stations . | . . . Recycling Units 2 | . 2 . Scanalyzers . | . . . Garrison Access . | . . . Total Hacks 15 | . 15 . Successful 9 | . 9 . Failed 6 | . 6 . Catastrophic . | . . . Database Lockouts . | . . . Manual 5 | . 5 . Terminals 9 | . 9 . Fabricators . | . . . Repair Stations . | . . . Recycling Units 6 | . 6 . Scanalyzers . | . . . Garrison Access . | . . . Terminal Hacks 4 | . 4 . Branch Access Points 1 | . 1 . Hauler Manifests 1 | . 1 . Zone Layout 2 | . 2 . Fabricator Hacks . | . . . Repair Station Hacks . | . . . Recycling Unit Hacks 4 | . 4 . Report Inventory 2 | . 2 . Retrieve Matter 1 | . 1 . Retrieve Components 1 | . 1 . Scanalyzer . | . . . Garrison Access Hacks . | . . . Unauthorized Hacks 1 | . 1 . Terminals 1 | . 1 . Botnet 1 | . 1 . Fabricators . | . . . Repair Stations . | . . . Recycling Units . | . . . Scanalyzers . | . . . Garrison Access . | . . . Data Cores Recovered . | . . . Used . | . . . Hacking Detections 5 | . 5 . Full Trace Events . | . . . Feedback Events . | . . . Feedback Blocked . | . . . Robot Schematics Acquired . | . . . Robots Built . | . . . Authchips . | . . . Time . | . . . Total Robot Build Rating . | . . . Part Schematics Acquired . | . . . Parts Built . | . . . Authchips . | . . . Time . | . . . Total Part Build Rating . | . . . Parts Repaired . | . . . Time . | . . . Parts Recycled . | . . . Recycled Matter . | . . . Retrieved Matter 85 | . 85 . Retrieved Components 10 | . 10 . Parts Scanalyzed . | . . . Part Schematics Acquired . | . . . Parts Damaged . | . . . Bothacking | -11 -10 -10 ------------ Run | Yrd Mat Sub Used RIF Installer . | . . . Robots Hacked . | . . . Non-combat . | . . . Combat . | . . . Robot Hacks Applied . | . . . Relay Couplers Released . | . . . Fabnet Peak Effective % . | . . . Robots Rewired . | . . . Allies Hacked . | . . . Hacks Repelled . | . . . Allies | -11 -10 -10 -------- Run | Yrd Mat Sub Total Allies . | . . . Largest Group . | . . . Highest-Rated Group . | . . . Highest-Rated Ally . | . . . Total Orders . | . . . Ally Attacks . | . . . Total Damage . | . . . Kills . | . . . Allies Corrupted . | . . . Allies Melted . | . . . Intel | -11 -10 -10 ------- Run | Yrd Mat Sub Active Infowar (turns) 1008 | 16 624 368 Terrain 407 | 16 391 . Structural 601 | . 233 368 Robot Analysis Total . | . . . Derelict Logs Recovered . | . . . Drone Launches . | . . . Drone Recoveries . | . . . Exploration | -11 -10 -10 ------------- Run | Yrd Mat Sub Turns Passed 1278 | 55 855 368 Spaces Moved 946 | 45 565 336 Core 3 | 3 . . Treads . | . . . Legs . | . . . Wheels 943 | 42 565 336 Hover . | . . . Flight . | . . . Fastest Speed 50 | 50 80 95 Average Speed 94 | 78 96 95 Slowest Speed 110 | 80 110 105 Overloaded Moves . | . . . Propulsion Burnouts . | . . . Robots Hopped . | . . . Potential Cave-ins . | . . . Cave-ins Triggered . | . . . Exploration Rate (%) 41 | 3 93 28 Regions Visited 2 Branch Regions 1 Pre-discovered Areas . | . . . Known Exits Taken . | . . . Unknown Exits Taken 2 | 1 1 . Scrap Searched 1 | . . 1 Spaces Dug 9 | . 2 7 Terrain Destroyed 70 | . 3 67 Melee . | . . . Projectile 3 | . 3 . AOE 67 | . . 67 Terrain Rammed . | . . . Walls Destroyed . | . . . Machines Disabled . | . . . Actions | -11 -10 -10 --------- Run | Yrd Mat Sub Total 1159 | 57 736 366 Wait 78 | 1 72 5 Move 944 | 44 564 336 Hop . | . . . Pick Up 18 | 3 14 1 Fast Attach 10 | 7 3 . Attach 4 | . 1 3 Detach . | . . . Swap 9 | . 8 1 Drop 5 | . 4 1 Fire 91 | 2 70 19 Melee . | . . . Ram . | . . . Kick . | . . . Crush . | . . . Escape Stasis . | . . . Rewire . | . . . Trap . | . . . Miscellaneous . | . . . Route ------- -11/Scrapyard -10/Materials (discovered 4 exits: [*Mat x2] / *Min / [*Sub]) -10/Subcaves (discovered 1 exit: [*Mat]) History --------- Turn | Location | Event 9 | -11/Scrapyard | Discovered new exit (range 15) 56 | -11/Scrapyard | Entered Materials 246 | -10/Materials | Discovered new exit (range 3) 302 | -10/Materials | Build established: Mutant 404 | -10/Materials | Discovered new exit (range 9) 404 | -10/Materials | Identified exit to Mines 619 | -10/Materials | Core integrity fell below 50% 623 | -10/Materials | Discovered new exit (range 5) 887 | -10/Materials | Discovered new exit (range 7) 911 | -10/Materials | Entered Subcaves 912 | -10/Subcaves | Approached by a straggling Scientist 952 | -10/Subcaves | Discovered new exit (range 10) 954 | -10/Subcaves | Shifting Twisted Machinery released Sub. Laser 980 | -10/Subcaves | Build established: Scavenger-Mutant 1184 | -10/Subcaves | Core integrity fell below 20% 1279 | -10/Subcaves | Destroyed self with Grenade Launcher Last Messages --------------- RI-AWA(O) puts together Mak. Laser. Acquired 3 matter. 35-7WQ(R) destroyed. Searching scrap... Found Mak. Thermal Plating. Found 66 Matter. Acquired 65 matter. G-34 Mercenary destroyed. G-47 Trooper destroyed. Aluminum Leg fries itself beyond repair. The unstable cave ceiling collapses. Lgt. Ion Engine destroyed. Grenade Launcher destroyed. Critical hit (Destroy). Wheel destroyed. OT-OHB(R) destroyed. The unstable cave ceiling collapses. Destroyed Scrap Shield. V9-9A9(R) destroyed. The unstable cave ceiling collapses. Map ----- +----------------------------------------------------+ | ??????????????### ## ####### ###???? | | ?????????????### #### ## ## ##???? | | ?????????????## ##### ###???? | | ?????????????### ###### ###????? | | ?????????????######### ## ####????? | | ??????????????###### # ###?????? | | ????????????????#### ## #####??????? | | ???????????????### ## ## #####??????? | | ???????????????### ### ##?????????? | | ???????????###### #### ###?????????? | | ???????????######" ### ###?????????? | | ???????????## #" ### ###??????????? | | ???????????## ### #######???????? | | ???????????## ## # # # ###??????? | | ???????????## #" # ##??????? | | ????????????## ## # # # ?? | | ???????????? # #### ?????????? | | ????????????< ## ######## ? ?????? | | ?????????????< ## ## # ####????? | | ????????????"<<### ##????? | | ????????????"# #????? | | ????????????## ## ?????? | | ????????????## ### # * ??????? | | ????????????## #### =% # ???????? | | ????????????### #### [ ###????????? | | ?????????????## @ ### *% ##????????? | | ?????????????### ### ###???????? | | ?????????????#### ## ##???????? | | ??????????????### # ? ## ##???????? | | ?????????????## ##? ##### ???????? | | ?????????????## # ###??????????? | | ?????????????### ?? # ???????????? | | ?????????????### ## ??## ???????????? | | ??????????????## ????????????????? | | ??????????????# & ##?????????????? | | ??????????????## ##?????????????? | | ??????????????## ?????????????? | | ??????????????## ????????????? | | ??????????????## ##????????????? | | ??????????????# ###????????????? | | ??????????????# ?? #????????????? | | ??????????????#### ????????????????????? | | ??????????????#### ????????????????????? | | ????????????????????????????????????????? | | ????????????????????????????????????????? | | ????????????????????????????????????????? | | ????????????????????????????????????????? | | ????????????????????????????????????????? | | ????????????????????????????????????????? | | ????????????????????????????????????????? | +----------------------------------------------------+ Best States ------------- Heat Dissipation 25 Energy Generation 10 Energy Capacity 250 Matter Stores 300 Matter Capacity 300 Sight Range 16 Terrain Scan Range 16 Terrain Scan Density 10 Evasion (%) 44 Item Schematics ----------------- None Robot Schematics ------------------ None Fabricated ------------ Nothing Repaired ---------- Nothing Alien Tech Used ----------------- None Achievements -------------- None Challenges ------------ None Game ------ Seed DisassembledStasisTendrils Manual? 0 Play Time 00:18:58 Cumulative 66.9 hours Start 2025.05.08 @ 16:50:18 End 2025.05.08 @ 21:14:24 Sessions 2 Manual Loads 0 Difficulty Rogue Special Mode None Game No. 62 Rogue 62 Adventurer 0 Explorer 0 Win Type - Total 1 Types 1/0/0/0/0/0/0/0/0/0 Lore% 39 Gallery% 45 Achievement% 42 Wizard Run 0 Options --------- Layout 1 ASCII 0 Keyboard 1 Movement Numpad Keybinds 0 Fullscreen 1 Font 32/SmallcapsGlow Map View 50x35 Zoom Use 0% Tactical HUD 0 Map Filters NONE Filters NONE Steam 1 RUN: 4d2807ff-345f-4296-8217-842389d5b885